[Event "*** Titled Tuesday 3|2 Blitz"]
[Site "Chess.com"]
[Date "2016.09.06"]
[Round "1"]
[White "MateusViageiro"]
[Black "dretch"]
[Result "1-0"]
[WhiteElo "2360"]
[BlackElo "2616"]
[TimeControl "180+2"]
[EndTime "11:07:16 PDT"]
[Termination "MateusViageiro won by resignation"]

1. d4 {[%clk 0:02:56.9]} 1... d5 {[%clk 0:03:01.3]} 2. Nf3 {[%clk 0:02:57.1]}
2... Nf6 {[%clk 0:03:01.6]} 3. g3 {[%clk 0:02:58.5]} 3... Bf5 {[%clk 0:02:59.1]}
4. Bg2 {[%clk 0:02:59.9]} 4... e6 {[%clk 0:02:59.5]} 5. O-O {[%clk 0:03:01.3]}
5... Be7 {[%clk 0:03:00.9]} 6. Nbd2 {[%clk 0:03:02.1]} 6... h6 {[%clk
0:03:01.6]} 7. c4 {[%clk 0:03:03.2]} 7... c6 {[%clk 0:03:02.6]} 8. b3 {[%clk
0:03:04.4]} 8... O-O {[%clk 0:03:02.1]} 9. Bb2 {[%clk 0:03:05.6]} 9... Nbd7
{[%clk 0:03:03.2]} 10. Ne5 {[%clk 0:03:06]} 10... a5 {[%clk 0:02:58.7]} 11. Re1
{[%clk 0:03:06.3]} 11... a4 {[%clk 0:02:59.3]} 12. bxa4 {[%clk 0:03:06.2]} 12...
Qa5 {[%clk 0:02:56.5]} 13. Nxd7 {[%clk 0:03:04.4]} 13... Nxd7 {[%clk 0:02:55.8]}
14. cxd5 {[%clk 0:03:04.5]} 14... exd5 {[%clk 0:02:56.3]} 15. e4 {[%clk
0:03:05.6]} 15... dxe4 {[%clk 0:02:53.7]} 16. Nxe4 {[%clk 0:02:59.5]} 16... Qxa4
{[%clk 0:02:48.3]} 17. Qxa4 {[%clk 0:02:59.7]} 17... Rxa4 {[%clk 0:02:50.2]} 18.
Nc3 {[%clk 0:03:00.5]} 18... Rb4 {[%clk 0:02:42.4]} 19. Ba3 {[%clk 0:03:00.8]}
19... Ra8 {[%clk 0:02:40.7]} 20. Bxb4 {[%clk 0:02:57.1]} 20... Bxb4 {[%clk
0:02:42.6]} 21. Rec1 {[%clk 0:02:57.2]} 21... Ba3 {[%clk 0:02:41.4]} 22. d5
{[%clk 0:02:37]} 22... Bxc1 {[%clk 0:02:39]} 23. Rxc1 {[%clk 0:02:36.6]} 23...
Ne5 {[%clk 0:02:32.1]} 24. dxc6 {[%clk 0:02:37.1]} 24... bxc6 {[%clk 0:02:32.7]}
25. a4 {[%clk 0:02:33.7]} 25... Ra5 {[%clk 0:02:30.4]} 26. f4 {[%clk 0:02:33]}
26... Nd3 {[%clk 0:02:30.9]} 27. Rd1 {[%clk 0:02:31]} 27... Rc5 {[%clk
0:02:21.5]} 28. Ne4 {[%clk 0:02:31.8]} 28... Rd5 {[%clk 0:00:49.7]} 29. Nf2
{[%clk 0:02:32.4]} 29... Nxf2 {[%clk 0:00:35]} 30. Rxd5 {[%clk 0:02:32.5]} 30...
cxd5 {[%clk 0:00:35.9]} 31. Kxf2 {[%clk 0:02:32.2]} 31... Kf8 {[%clk 0:00:25.3]}
32. Bxd5 {[%clk 0:02:31.8]} 32... Ke7 {[%clk 0:00:26.6]} 33. Ke3 {[%clk
0:02:32.9]} 33... f6 {[%clk 0:00:24.7]} 34. Kd4 {[%clk 0:02:32.2]} 34... Kd6
{[%clk 0:00:25.9]} 35. a5 {[%clk 0:02:32.5]} 35... Bc8 {[%clk 0:00:26.2]} 36.
Bc4 {[%clk 0:02:32.3]} 36... Kc6 {[%clk 0:00:27]} 37. Bd3 {[%clk 0:02:30.5]}
37... Be6 {[%clk 0:00:25.4]} 38. a6 {[%clk 0:02:30.1]} 38... Kb6 {[%clk
0:00:26.7]} 39. Bc4 {[%clk 0:02:30.9]} 39... Bh3 {[%clk 0:00:15.6]} 40. Kd5
{[%clk 0:02:29.2]} 40... Kc7 {[%clk 0:00:16.8]} 41. Kc5 {[%clk 0:02:29.6]} 41...
Bc8 {[%clk 0:00:09.9]} 42. Bb5 {[%clk 0:02:28.1]} 42... g5 {[%clk 0:00:08.5]}
43. h4 {[%clk 0:02:27.9]} 43... gxf4 {[%clk 0:00:08.2]} 44. gxf4 {[%clk
0:02:27.8]} 44... f5 {[%clk 0:00:03.7]} 45. a7 {[%clk 0:02:26.8]} 45... Bb7
{[%clk 0:00:03.5]} 46. Bc4 {[%clk 0:02:25.4]} 46... Ba8 {[%clk 0:00:02.2]} 47.
Bd5 {[%clk 0:02:26.2]} 47... Bxd5 {[%clk 0:00:03.1]} 48. Kxd5 {[%clk 0:02:27.3]}
48... Kb7 {[%clk 0:00:04.8]} 49. Ke5 {[%clk 0:02:28.5]} 1-0

[Event "*** Titled Tuesday 3|2 Blitz"]
[Site "Chess.com"]
[Date "2016.09.06"]
[Round "1"]
[White "cassoulet"]
[Black "Alexander_Moskalenko"]
[Result "0-1"]
[WhiteElo "2335"]
[BlackElo "2619"]
[TimeControl "180+2"]
[EndTime "11:07:29 PDT"]
[Termination "Alexander_Moskalenko won by checkmate"]

1. e4 {[%clk 0:03:01.9]} 1... c5 {[%clk 0:02:59]} 2. Nf3 {[%clk 0:03:02.1]} 2...
d6 {[%clk 0:02:59.6]} 3. Bb5+ {[%clk 0:03:02.2]} 3... Nd7 {[%clk 0:02:59.9]} 4.
O-O {[%clk 0:03:02.2]} 4... Nf6 {[%clk 0:02:59.5]} 5. Re1 {[%clk 0:03:02.1]}
5... a6 {[%clk 0:03:00.6]} 6. Bf1 {[%clk 0:03:02.2]} 6... b6 {[%clk 0:02:50.7]}
7. d4 {[%clk 0:02:59.1]} 7... cxd4 {[%clk 0:02:51.4]} 8. Nxd4 {[%clk 0:03:01]}
8... Bb7 {[%clk 0:02:53]} 9. Nc3 {[%clk 0:03:02.2]} 9... e6 {[%clk 0:02:53.4]}
10. a4 {[%clk 0:02:57.4]} 10... Be7 {[%clk 0:02:54.5]} 11. Bg5 {[%clk
0:02:54.7]} 11... O-O {[%clk 0:02:55.4]} 12. Qf3 {[%clk 0:02:55.6]} 12... Ne5
{[%clk 0:02:55.9]} 13. Qh3 {[%clk 0:02:55.2]} 13... Rc8 {[%clk 0:02:54.5]} 14.
Rad1 {[%clk 0:02:55.7]} 14... Re8 {[%clk 0:02:50.9]} 15. f4 {[%clk 0:02:55.2]}
15... Nc4 {[%clk 0:02:47.3]} 16. e5 {[%clk 0:02:49.6]} 16... Nd7 {[%clk
0:01:52.2]} 17. Nxe6 {[%clk 0:02:47.5]} 17... fxe6 {[%clk 0:01:50.1]} 18. Qxe6+
{[%clk 0:02:49.4]} 18... Kh8 {[%clk 0:01:51.7]} 19. Bxc4 {[%clk 0:02:19.6]}
19... Bxg5 {[%clk 0:01:46.6]} 20. Qxd6 {[%clk 0:02:20.3]} 20... Bh4 {[%clk
0:01:15.7]} 21. g3 {[%clk 0:02:10.8]} 21... Rxc4 {[%clk 0:01:16.5]} 22. Qxd7
{[%clk 0:02:10.4]} 22... Qxd7 {[%clk 0:01:17.8]} 23. Rxd7 {[%clk 0:02:11.8]}
23... Bc6 {[%clk 0:01:12.7]} 24. Rd3 {[%clk 0:01:50]} 24... Be7 {[%clk
0:01:08.8]} 25. Red1 {[%clk 0:01:50.5]} 25... Bc5+ {[%clk 0:01:07.4]} 26. Kf1
{[%clk 0:01:51.5]} 26... g5 {[%clk 0:00:42.3]} 27. b3 {[%clk 0:01:48.1]} 27...
Rb4 {[%clk 0:00:43.6]} 28. Rd8 {[%clk 0:01:30.3]} 28... Kg7 {[%clk 0:00:37.5]}
29. Rxe8 {[%clk 0:01:29.9]} 29... Bxe8 {[%clk 0:00:39.4]} 30. f5 {[%clk
0:01:31.3]} 30... Rd4 {[%clk 0:00:35.8]} 31. Re1 {[%clk 0:01:25.7]} 31... Bc6
{[%clk 0:00:37]} 32. Ke2 {[%clk 0:01:12.2]} 32... h5 {[%clk 0:00:37.3]} 33. Rf1
{[%clk 0:01:09.2]} 33... g4 {[%clk 0:00:38.5]} 34. Rf4 {[%clk 0:01:01.6]} 34...
Bf3+ {[%clk 0:00:37.8]} 35. Ke3 {[%clk 0:01:02.8]} 35... Rd5+ {[%clk 0:00:32.2]}
36. Rd4 {[%clk 0:01:00.7]} 36... Bxd4+ {[%clk 0:00:32.8]} 37. Kf4 {[%clk
0:01:01.8]} 37... Bxe5+ {[%clk 0:00:33.7]} 38. Kg5 {[%clk 0:01:02.8]} 38... Bf6+
{[%clk 0:00:35]} 39. Kxh5 {[%clk 0:01:02.1]} 39... Rxf5# {[%clk 0:00:35.7]} 0-1

[Event "*** Titled Tuesday 3|2 Blitz"]
[Site "Chess.com"]
[Date "2016.09.06"]
[Round "1"]
[White "Anton_Demchenko"]
[Black "Misha_Bilous"]
[Result "0-1"]
[WhiteElo "2608"]
[BlackElo "2360"]
[TimeControl "180+2"]
[EndTime "11:07:41 PDT"]
[Termination "Misha_Bilous won by resignation"]

1. e4 {[%clk 0:02:00.5]} 1... c5 {[%clk 0:02:59.9]} 2. Nf3 {[%clk 0:02:01.3]}
2... Nc6 {[%clk 0:03:01.2]} 3. Nc3 {[%clk 0:02:00.7]} 3... e5 {[%clk 0:03:01.3]}
4. Bc4 {[%clk 0:02:00.8]} 4... d6 {[%clk 0:02:59.1]} 5. d3 {[%clk 0:02:02.2]}
5... Be7 {[%clk 0:03:00]} 6. O-O {[%clk 0:02:03.6]} 6... Nf6 {[%clk 0:02:59.7]}
7. h3 {[%clk 0:02:05.1]} 7... O-O {[%clk 0:03:00.4]} 8. a3 {[%clk 0:02:06.6]}
8... Be6 {[%clk 0:02:59.1]} 9. Ng5 {[%clk 0:02:03.9]} 9... Bxc4 {[%clk 0:02:55]}
10. dxc4 {[%clk 0:02:05.8]} 10... Nd4 {[%clk 0:02:48.2]} 11. b3 {[%clk
0:02:00.2]} 11... Ne8 {[%clk 0:02:28.9]} 12. Nf3 {[%clk 0:02:00.6]} 12... Nc7
{[%clk 0:02:29.8]} 13. Re1 {[%clk 0:01:54.1]} 13... Nce6 {[%clk 0:02:29.9]} 14.
Nd5 {[%clk 0:01:53.2]} 14... Nxf3+ {[%clk 0:02:19.7]} 15. Qxf3 {[%clk
0:01:54.1]} 15... Nd4 {[%clk 0:02:20.7]} 16. Qd1 {[%clk 0:01:54.5]} 16... f5
{[%clk 0:02:16.7]} 17. c3 {[%clk 0:01:54.3]} 17... Ne6 {[%clk 0:02:14.4]} 18.
exf5 {[%clk 0:01:54.7]} 18... Rxf5 {[%clk 0:02:14]} 19. Qg4 {[%clk 0:01:56.3]}
19... g6 {[%clk 0:02:07.2]} 20. Be3 {[%clk 0:01:47.5]} 20... Bg5 {[%clk
0:01:58.3]} 21. Rad1 {[%clk 0:01:48.3]} 21... Qf8 {[%clk 0:01:27.2]} 22. h4
{[%clk 0:01:25.6]} 22... Bxe3 {[%clk 0:01:21.6]} 23. Nxe3 {[%clk 0:01:25.9]}
23... Rf6 {[%clk 0:01:15.5]} 24. Rxd6 {[%clk 0:01:23.9]} 24... Qxd6 {[%clk
0:01:12.7]} 25. Nd5 {[%clk 0:01:24.8]} 25... Rf5 {[%clk 0:01:08.1]} 26. h5
{[%clk 0:01:24.9]} 26... Nf4 {[%clk 0:01:00]} 27. hxg6 {[%clk 0:01:22]} 27...
hxg6 {[%clk 0:00:58.6]} 28. Ne3 {[%clk 0:01:17.6]} 28... Rff8 {[%clk 0:00:50.8]}
29. Rd1 {[%clk 0:01:18.7]} 29... Qe6 {[%clk 0:00:50.8]} 30. Qxe6+ {[%clk
0:01:07.7]} 30... Nxe6 {[%clk 0:00:51.1]} 31. Rd5 {[%clk 0:01:09.6]} 31... b6
{[%clk 0:00:38.2]} 32. Rxe5 {[%clk 0:01:10.8]} 32... Nf4 {[%clk 0:00:39.5]} 33.
g3 {[%clk 0:01:08.7]} 33... Nd3 {[%clk 0:00:39.8]} 34. Re6 {[%clk 0:01:06.3]}
34... Kg7 {[%clk 0:00:37.1]} 35. Nd5 {[%clk 0:00:56.4]} 35... Rae8 {[%clk
0:00:34.2]} 36. Rc6 {[%clk 0:00:53.9]} 36... Re1+ {[%clk 0:00:33.7]} 37. Kh2
{[%clk 0:00:54.1]} 37... Rxf2+ {[%clk 0:00:35]} 38. Kh3 {[%clk 0:00:56]} 38...
Rh1+ {[%clk 0:00:36]} 39. Kg4 {[%clk 0:00:57.4]} 39... Ne5+ {[%clk 0:00:37.3]}
0-1

[Event "*** Titled Tuesday 3|2 Blitz"]
[Site "Chess.com"]
[Date "2016.09.06"]
[Round "1"]
[White "E-Shaposhnikov"]
[Black "chessdude"]
[Result "1-0"]
[WhiteElo "2648"]
[BlackElo "2344"]
[TimeControl "180+2"]
[EndTime "11:07:44 PDT"]
[Termination "E-Shaposhnikov won by resignation"]

1. Nf3 {[%clk 0:02:50.8]} 1... d5 {[%clk 0:02:59.7]} 2. d4 {[%clk 0:02:51.1]}
2... Nf6 {[%clk 0:03:00.3]} 3. c4 {[%clk 0:02:47]} 3... e6 {[%clk 0:03:01.3]} 4.
Nc3 {[%clk 0:02:47.1]} 4... Bb4 {[%clk 0:03:02.3]} 5. e3 {[%clk 0:02:47]} 5...
O-O {[%clk 0:03:02.3]} 6. Bd3 {[%clk 0:02:43.7]} 6... b6 {[%clk 0:03:02.4]} 7.
cxd5 {[%clk 0:02:42.3]} 7... exd5 {[%clk 0:03:02.7]} 8. O-O {[%clk 0:02:43.4]}
8... Ba6 {[%clk 0:02:52.4]} 9. Bxa6 {[%clk 0:02:26.7]} 9... Nxa6 {[%clk
0:02:53.9]} 10. Bd2 {[%clk 0:02:28.6]} 10... Re8 {[%clk 0:02:50.2]} 11. Rc1
{[%clk 0:02:27.6]} 11... Bf8 {[%clk 0:02:47.4]} 12. Qa4 {[%clk 0:02:26.5]} 12...
Qc8 {[%clk 0:02:42.1]} 13. Rfd1 {[%clk 0:02:24.7]} 13... c5 {[%clk 0:02:35.3]}
14. Nb5 {[%clk 0:02:13.8]} 14... Qb7 {[%clk 0:02:28.3]} 15. Ne5 {[%clk
0:02:01.6]} 15... Rac8 {[%clk 0:02:23.3]} 16. Be1 {[%clk 0:01:47.7]} 16... Re6
{[%clk 0:01:54.7]} 17. Nd3 {[%clk 0:01:44.3]} 17... c4 {[%clk 0:01:52.3]} 18.
Nf4 {[%clk 0:01:39.1]} 18... Rec6 {[%clk 0:01:50.9]} 19. a3 {[%clk 0:01:26.9]}
19... Ra8 {[%clk 0:01:37.5]} 20. b3 {[%clk 0:01:23.4]} 20... Rac8 {[%clk
0:01:36.5]} 21. b4 {[%clk 0:01:17.7]} 21... Ra8 {[%clk 0:01:20]} 22. e4 {[%clk
0:01:11.2]} 22... Nc7 {[%clk 0:01:12.6]} 23. e5 {[%clk 0:01:09.1]} 23... a5
{[%clk 0:00:40.2]} 24. Nxc7 {[%clk 0:01:03.9]} 24... Rxc7 {[%clk 0:00:40.9]} 25.
exf6 {[%clk 0:00:56.6]} 25... axb4 {[%clk 0:00:42.2]} 26. Qb5 {[%clk 0:00:56]}
26... Ra5 {[%clk 0:00:41]} 27. Qe8 {[%clk 0:00:56.6]} 27... Ra8 {[%clk
0:00:41.9]} 28. Qe5 {[%clk 0:00:57]} 28... bxa3 {[%clk 0:00:35]} 29. Nxd5 {[%clk
0:00:58]} 29... Rd7 {[%clk 0:00:35.6]} 30. fxg7 {[%clk 0:00:51.4]} 30... Bxg7
{[%clk 0:00:34.9]} 31. Nf6+ {[%clk 0:00:51.9]} 31... Kh8 {[%clk 0:00:33.4]} 32.
d5 {[%clk 0:00:43.5]} 32... Rad8 {[%clk 0:00:18.9]} 33. Qf5 {[%clk 0:00:44.3]}
33... Bxf6 {[%clk 0:00:19.3]} 34. Qxf6+ {[%clk 0:00:46.2]} 34... Kg8 {[%clk
0:00:20.9]} 35. Bc3 {[%clk 0:00:47.4]} 1-0

[Event "*** Titled Tuesday 3|2 Blitz"]
[Site "Chess.com"]
[Date "2016.09.06"]
[Round "1"]
[White "Haridaskesavan"]
[Black "joppie2"]
[Result "0-1"]
[WhiteElo "2201"]
[BlackElo "2511"]
[TimeControl "180+2"]
[EndTime "11:07:46 PDT"]
[Termination "joppie2 won by resignation"]

1. e4 {[%clk 0:03:01.3]} 1... e5 {[%clk 0:02:58.9]} 2. Nf3 {[%clk 0:03:01.9]}
2... d6 {[%clk 0:02:59.7]} 3. Bc4 {[%clk 0:03:02.6]} 3... Be7 {[%clk 0:02:58.4]}
4. d3 {[%clk 0:03:03.1]} 4... Nf6 {[%clk 0:02:58.9]} 5. O-O {[%clk 0:03:04.1]}
5... O-O {[%clk 0:02:59.6]} 6. Nbd2 {[%clk 0:03:05.3]} 6... c6 {[%clk
0:02:55.8]} 7. Bb3 {[%clk 0:03:05.9]} 7... Nbd7 {[%clk 0:02:56.9]} 8. Re1 {[%clk
0:03:06.9]} 8... Nc5 {[%clk 0:02:58.6]} 9. Nf1 {[%clk 0:03:06.4]} 9... Nxb3
{[%clk 0:02:44.5]} 10. axb3 {[%clk 0:03:07]} 10... Be6 {[%clk 0:02:45]} 11. c4
{[%clk 0:03:07.9]} 11... h6 {[%clk 0:02:42.6]} 12. Ng3 {[%clk 0:03:08.6]} 12...
a6 {[%clk 0:02:42]} 13. h3 {[%clk 0:03:07.5]} 13... Re8 {[%clk 0:02:42.7]} 14.
d4 {[%clk 0:03:06.8]} 14... Qc7 {[%clk 0:02:31.9]} 15. d5 {[%clk 0:03:07.3]}
15... Bd7 {[%clk 0:02:28.8]} 16. Be3 {[%clk 0:03:05.2]} 16... b5 {[%clk
0:02:29.5]} 17. Rc1 {[%clk 0:02:54.6]} 17... Qb7 {[%clk 0:02:28.7]} 18. c5
{[%clk 0:02:51.2]} 18... cxd5 {[%clk 0:02:25.3]} 19. exd5 {[%clk 0:02:34.2]}
19... Nxd5 {[%clk 0:02:19.7]} 20. cxd6 {[%clk 0:02:30.4]} 20... Bxd6 {[%clk
0:02:19.5]} 21. Ne4 {[%clk 0:02:15.9]} 21... Bb4 {[%clk 0:01:57.7]} 22. Bc5
{[%clk 0:02:09.5]} 22... Bxe1 {[%clk 0:01:55.8]} 23. Nd6 {[%clk 0:02:10.3]}
23... Qc6 {[%clk 0:01:53.2]} 24. Nxe8 {[%clk 0:02:10.3]} 24... Rxe8 {[%clk
0:01:52.4]} 25. Qxe1 {[%clk 0:02:10.6]} 25... Nf4 {[%clk 0:01:53.9]} 26. Be3
{[%clk 0:02:04.8]} 26... Qg6 {[%clk 0:01:39.3]} 27. Bxf4 {[%clk 0:02:02.7]}
27... exf4 {[%clk 0:01:41.2]} 28. Qc3 {[%clk 0:01:20.4]} 28... Rc8 {[%clk
0:01:28.4]} 29. Qd2 {[%clk 0:00:53.6]} 29... Rxc1+ {[%clk 0:01:28.4]} 30. Qxc1
{[%clk 0:00:54.7]} 30... Bxh3 {[%clk 0:01:30]} 31. Nh4 {[%clk 0:00:55.9]} 31...
Qg5 {[%clk 0:01:21]} 32. Qe1 {[%clk 0:00:27.2]} 32... Qxh4 {[%clk 0:01:14.1]}
33. gxh3 {[%clk 0:00:26.8]} 33... Qxh3 {[%clk 0:01:01.1]} 34. Qe8+ {[%clk
0:00:25.8]} 34... Kh7 {[%clk 0:01:02.3]} 35. Qe4+ {[%clk 0:00:17.8]} 35... f5
{[%clk 0:01:03.6]} 36. Qxf4 {[%clk 0:00:18.8]} 36... Qg4+ {[%clk 0:01:04.5]} 37.
Qxg4 {[%clk 0:00:18.7]} 37... fxg4 {[%clk 0:01:06.4]} 0-1

[Event "*** Titled Tuesday 3|2 Blitz"]
[Site "Chess.com"]
[Date "2016.09.06"]
[Round "1"]
[White "matej2221"]
[Black "Abdodi"]
[Result "0-1"]
[WhiteElo "2392"]
[BlackElo "1937"]
[TimeControl "180+2"]
[EndTime "11:08:03 PDT"]
[Termination "Abdodi won by resignation"]

1. e4 {[%clk 0:02:56.1]} 1... c6 {[%clk 0:02:52]} 2. d4 {[%clk 0:02:49.9]} 2...
d5 {[%clk 0:02:46.6]} 3. Nc3 {[%clk 0:02:47]} 3... dxe4 {[%clk 0:02:46.6]} 4.
Nxe4 {[%clk 0:02:31.1]} 4... Nd7 {[%clk 0:02:43.7]} 5. Nf3 {[%clk 0:02:31.4]}
5... Ngf6 {[%clk 0:02:42.2]} 6. Ng3 {[%clk 0:02:24.6]} 6... g6 {[%clk
0:02:42.4]} 7. Bc4 {[%clk 0:02:18.9]} 7... Bg7 {[%clk 0:02:41.6]} 8. O-O {[%clk
0:02:17.5]} 8... O-O {[%clk 0:02:42]} 9. Qe2 {[%clk 0:02:10.8]} 9... Nb6 {[%clk
0:02:41.2]} 10. Bb3 {[%clk 0:02:11.3]} 10... Bg4 {[%clk 0:02:40.7]} 11. Rd1
{[%clk 0:02:09]} 11... Nbd5 {[%clk 0:02:30.5]} 12. c4 {[%clk 0:01:49.4]} 12...
Nb6 {[%clk 0:02:21.6]} 13. Bg5 {[%clk 0:01:33.2]} 13... h6 {[%clk 0:02:17]} 14.
Bf4 {[%clk 0:01:30.9]} 14... Kh7 {[%clk 0:02:13.6]} 15. h3 {[%clk 0:01:30.9]}
15... Bxf3 {[%clk 0:02:13.8]} 16. Qxf3 {[%clk 0:01:32.8]} 16... a5 {[%clk
0:02:14.4]} 17. a4 {[%clk 0:01:32.7]} 17... Qd7 {[%clk 0:02:08.3]} 18. Be5
{[%clk 0:01:30.7]} 18... Rad8 {[%clk 0:02:07.8]} 19. Ne4 {[%clk 0:01:31.3]}
19... Nxe4 {[%clk 0:02:08.1]} 20. Qxe4 {[%clk 0:01:33.2]} 20... Qe6 {[%clk
0:01:40.2]} 21. Qe2 {[%clk 0:01:27.5]} 21... f6 {[%clk 0:01:37.1]} 22. Qe3
{[%clk 0:00:21.1]} 22... fxe5 {[%clk 0:01:27.7]} 23. d5 {[%clk 0:00:22.5]} 23...
cxd5 {[%clk 0:01:28.8]} 24. cxd5 {[%clk 0:00:24.4]} 24... Qd6 {[%clk 0:01:22.9]}
25. Qe4 {[%clk 0:00:25.5]} 25... Rf4 {[%clk 0:01:20.6]} 26. Qe3 {[%clk 0:00:25]}
26... Nd7 {[%clk 0:01:16]} 27. Rac1 {[%clk 0:00:25.1]} 27... Rd4 {[%clk
0:01:10.7]} 28. Rxd4 {[%clk 0:00:19.5]} 28... exd4 {[%clk 0:01:11]} 29. Qe6
{[%clk 0:00:20.1]} 29... Nc5 {[%clk 0:01:03.3]} 30. Qxd6 {[%clk 0:00:17.8]}
30... exd6 {[%clk 0:01:02.3]} 31. Bc4 {[%clk 0:00:15.9]} 31... Nxa4 {[%clk
0:01:01.2]} 32. b3 {[%clk 0:00:17]} 32... Nb6 {[%clk 0:01:00.2]} 33. Bd3 {[%clk
0:00:15.7]} 33... Nxd5 {[%clk 0:00:58.9]} 34. Kf1 {[%clk 0:00:15.4]} 34... Nc3
{[%clk 0:00:56.8]} 35. Ke1 {[%clk 0:00:14.4]} 35... h5 {[%clk 0:00:55.9]} 36.
Rc2 {[%clk 0:00:14.4]} 36... Re8+ {[%clk 0:00:55.4]} 37. Kf1 {[%clk 0:00:16.3]}
37... b5 {[%clk 0:00:53]} 0-1

[Event "*** Titled Tuesday 3|2 Blitz"]
[Site "Chess.com"]
[Date "2016.09.06"]
[Round "1"]
[White "Boryboy"]
[Black "Lali-Rustavi"]
[Result "1-0"]
[WhiteElo "2405"]
[BlackElo "1842"]
[TimeControl "180+2"]
[EndTime "11:08:06 PDT"]
[Termination "Boryboy won on time"]

1. d4 {[%clk 0:02:26.2]} 1... d5 {[%clk 0:02:59.5]} 2. Nf3 {[%clk 0:02:19.6]}
2... Nf6 {[%clk 0:02:58.1]} 3. c4 {[%clk 0:02:16.2]} 3... dxc4 {[%clk
0:02:58.4]} 4. g3 {[%clk 0:02:15]} 4... e6 {[%clk 0:02:53.5]} 5. Bg2 {[%clk
0:02:14.7]} 5... Be7 {[%clk 0:02:53.3]} 6. O-O {[%clk 0:02:11.5]} 6... O-O
{[%clk 0:02:54.2]} 7. Ne5 {[%clk 0:02:12.8]} 7... c5 {[%clk 0:02:34]} 8. dxc5
{[%clk 0:02:09.7]} 8... Bxc5 {[%clk 0:02:33.3]} 9. Nxc4 {[%clk 0:02:04.3]} 9...
Nc6 {[%clk 0:02:29.7]} 10. Nc3 {[%clk 0:02:03.5]} 10... a6 {[%clk 0:02:27.7]}
11. Bg5 {[%clk 0:01:55.8]} 11... Be7 {[%clk 0:02:07.7]} 12. Qxd8 {[%clk
0:01:44]} 12... Rxd8 {[%clk 0:02:07.5]} 13. Rfd1 {[%clk 0:01:43.6]} 13... Bd7
{[%clk 0:02:05.3]} 14. Nb6 {[%clk 0:00:48.8]} 14... Be8 {[%clk 0:01:24.8]} 15.
Nxa8 {[%clk 0:00:47.8]} 15... Rxa8 {[%clk 0:01:25]} 16. Rac1 {[%clk 0:00:48.9]}
16... h6 {[%clk 0:01:23.9]} 17. Bf4 {[%clk 0:00:47.2]} 17... g5 {[%clk
0:00:50.4]} 18. Bd6 {[%clk 0:00:47.4]} 18... Kf8 {[%clk 0:00:49.9]} 19. Bxe7+
{[%clk 0:00:45.4]} 19... Kxe7 {[%clk 0:00:51.1]} 20. Na4 {[%clk 0:00:47.1]}
20... Rb8 {[%clk 0:00:29.7]} 21. Nc5 {[%clk 0:00:46]} 21... Kf8 {[%clk
0:00:15.7]} 22. Rd2 {[%clk 0:00:39.9]} 22... Ne7 {[%clk 0:00:16.4]} 23. Nxb7
{[%clk 0:00:39.4]} 23... Ned5 {[%clk 0:00:16.8]} 24. Nd6 {[%clk 0:00:39.2]}
24... Ba4 {[%clk 0:00:14.9]} 25. b3 {[%clk 0:00:39.8]} 25... Bd7 {[%clk
0:00:14.6]} 26. Nc4 {[%clk 0:00:37.2]} 26... Ke7 {[%clk 0:00:13.1]} 27. e4
{[%clk 0:00:33.7]} 27... Nb4 {[%clk 0:00:13.3]} 28. e5 {[%clk 0:00:33.7]} 28...
Ne8 {[%clk 0:00:11.4]} 29. Nd6 {[%clk 0:00:32.1]} 29... Rb6 {[%clk 0:00:07.1]}
30. Nxe8 {[%clk 0:00:32.4]} 30... Kxe8 {[%clk 0:00:07.8]} 31. Rc7 {[%clk
0:00:33.2]} 31... Bb5 {[%clk 0:00:07.2]} 32. a4 {[%clk 0:00:29.6]} 1-0

[Event "*** Titled Tuesday 3|2 Blitz"]
[Site "Chess.com"]
[Date "2016.09.06"]
[Round "1"]
[White "LuckyTiger"]
[Black "Andrejkin"]
[Result "1-0"]
[WhiteElo "2539"]
[BlackElo "2219"]
[TimeControl "180+2"]
[EndTime "11:08:09 PDT"]
[Termination "LuckyTiger won by checkmate"]

1. e4 {[%clk 0:03:00.9]} 1... c5 {[%clk 0:02:51.2]} 2. c3 {[%clk 0:03:01.4]}
2... Nf6 {[%clk 0:02:50.9]} 3. e5 {[%clk 0:03:02.6]} 3... Nd5 {[%clk 0:02:51.7]}
4. Nf3 {[%clk 0:03:03.7]} 4... d6 {[%clk 0:02:51.9]} 5. d4 {[%clk 0:02:54.6]}
5... cxd4 {[%clk 0:02:53.8]} 6. Bb5+ {[%clk 0:02:48.9]} 6... Bd7 {[%clk
0:02:48]} 7. Bc4 {[%clk 0:02:49.8]} 7... Nb6 {[%clk 0:02:47.7]} 8. Bb3 {[%clk
0:02:50.9]} 8... Nc6 {[%clk 0:02:46.8]} 9. cxd4 {[%clk 0:02:24.3]} 9... dxe5
{[%clk 0:02:41.3]} 10. dxe5 {[%clk 0:02:26.2]} 10... e6 {[%clk 0:02:41.4]} 11.
Nc3 {[%clk 0:02:16.1]} 11... Be7 {[%clk 0:02:41.8]} 12. O-O {[%clk 0:02:17.6]}
12... O-O {[%clk 0:02:42.4]} 13. Qe2 {[%clk 0:02:19]} 13... a6 {[%clk
0:02:26.6]} 14. Rd1 {[%clk 0:02:18.9]} 14... Qc7 {[%clk 0:02:26.7]} 15. Bf4
{[%clk 0:02:10]} 15... Na5 {[%clk 0:02:11.4]} 16. Bc2 {[%clk 0:02:04.2]} 16...
Nac4 {[%clk 0:02:01.4]} 17. b3 {[%clk 0:01:55.4]} 17... Na5 {[%clk 0:01:41.4]}
18. Qd3 {[%clk 0:01:41]} 18... g6 {[%clk 0:01:41]} 19. Ng5 {[%clk 0:01:23.4]}
19... Rac8 {[%clk 0:01:28.3]} 20. Nge4 {[%clk 0:00:41.5]} 20... Rfd8 {[%clk
0:01:28.4]} 21. Qh3 {[%clk 0:00:38.3]} 21... Nd5 {[%clk 0:01:07.7]} 22. Bd2
{[%clk 0:00:14]} 22... Qxe5 {[%clk 0:00:55.2]} 23. Rac1 {[%clk 0:00:11]} 23...
Ba3 {[%clk 0:00:53.9]} 24. Rb1 {[%clk 0:00:10.8]} 24... Nb4 {[%clk 0:00:48.5]}
25. Bg5 {[%clk 0:00:09.3]} 25... Nxc2 {[%clk 0:00:18.3]} 26. Nf6+ {[%clk
0:00:08.6]} 26... Kf8 {[%clk 0:00:18.4]} 27. Qh6+ {[%clk 0:00:09.2]} 27... Ke7
{[%clk 0:00:16.3]} 28. Nxh7+ {[%clk 0:00:09.4]} 28... Qxg5 {[%clk 0:00:16.2]}
29. Qxg5+ {[%clk 0:00:10.3]} 29... Ke8 {[%clk 0:00:17.3]} 30. Nf6+ {[%clk
0:00:11.5]} 30... Kf8 {[%clk 0:00:17.3]} 31. Nce4 {[%clk 0:00:11.7]} 31... Be7
{[%clk 0:00:15.3]} 32. Qh6# {[%clk 0:00:12.2]} 1-0